[Event "EYCC Open-U12 2019"]
[Site "Bratislava"]
[Date "2019.08.08"]
[Round "7.34"]
[White "Janeczko, Jakub"]
[Black "Kluehs, Gustaf"]
[Result "0-1"]
[ECO "B33"]
[WhiteElo "1663"]
[BlackElo "1811"]
[Annotator "NA"]
[PlyCount "96"]
[EventDate "2019.08.02"]
[EventType "swiss"]
[EventCountry "SVK"]
[SourceTitle "playchess.com"]
[Source "ChessBase"]
[SourceQuality "1"]
[TimeControl "40/5400+30:1800+30"]

1. e4 {[%emt 0:00:00]} c5 {[%emt 0:00:00]} 2. Nf3 {[%emt 0:00:00]} Nc6 {[%emt 0:00:00]} 3. d4 {[%emt 0:00:20]} cxd4 {[%emt 0:00:00]} 4. Nxd4 {[%emt 0:00:12]} Nf6 {[%emt 0:00:00]} 5. Nc3 {[%emt 0:00:13]} e5 {[%emt 0:00:00]} 6. Ndb5 {[%emt 0:00:11]} d6 {[%emt 0:00:00]} 7. Bg5 {[%emt 0:00:03]} a6 {[%emt 0:00:00]} 8. Na3 {[%emt 0:00:05]} b5 {[%emt 0:00:00]} 9. Nd5 {[%emt 0:03:36]} Be7 {[%emt 0:00:01]} 10. Bxf6 {[%emt 0:00:44]} Bxf6 {[%emt 0:00:06]} 11. c3 {[%emt 0:02:35]} Bg5 {[%emt 0:00:07]} 12. Nc2 {[%emt 0:00:05]} O-O {[%emt 0:00:04]} 13. h4 {[%emt 0:02:18]} Bh6 {[%emt 0:00:04]} 14. g4 {[%emt 0:00:05]} Bf4 {[%emt 0:00:05]} 15. Qf3 {[%emt 0:00:59]} Rb8 {[%emt 0:03:05]} 16. Be2 {[%emt 0:07:26]} Re8 {[%emt 0:08:11]} 17. Nxf4 {[%emt 0:06:41]} exf4 {[%emt 0:00:06]} 18. O-O-O {[%emt 0:02:48]} b4 {[%emt 0:05:55]} 19. cxb4 {[%emt 0:05:20]} Nxb4 {[%emt 0:00:56]} 20. Bc4 {[%emt 0:04:22]} Nxc2 {[%emt 0:02:20]} 21. Kxc2 {[%emt 0:00:21]} Qb6 {[%emt 0:01:51]} 22. b3 {[%emt 0:09:33]} Bb7 {[%emt 0:05:21]} 23. Qxf4 {[%emt 0:12:36]} Rxe4 {[%emt 0:07:08]} 24. Qxf7+ {[%emt 0:09:01]} Kh8 {[%emt 0:00:08]} 25. Rhe1 {[%emt 0:00:55]} Qa5 {[%emt 0:04:17]} 26. Rxe4 {[%emt 0:03:24]} Bxe4+ {[%emt 0:00:07]} 27. Kb2 {[%emt 0:01:39]} Qe5+ {[%emt 0:00:40]} 28. Ka3 {[%emt 0:00:06]} Qc5+ {[%emt 0:02:29]} 29. Kb2 {[%emt 0:00:02]} d5 {[%emt 0:00:21]} 30. Qf4 {[%emt 0:05:00]} Rf8 {[%emt 0:00:25]} 31. Qe5 {[%emt 0:00:55]} Qxf2+ {[%emt 0:01:31]} 32. Ka3 {[%emt 0:01:43]} dxc4 {[%emt 0:01:24]} 33. Qxe4 {[%emt 0:00:22]} c3 {[%emt 0:01:02]} 34. Qe7 {[%emt 0:07:32]} Qb2+ {[%emt 0:05:47]} 35. Kb4 {[%emt 0:00:23]} Rf4+ {[%emt 0:00:08]} 36. Ka5 {[%emt 0:03:14]} Qxa2+ {[%emt 0:00:09]} 37. Kb6 Rf6+ {[%emt 0:01:41]} 38. Kc7 {[%emt 0:06:38]} Qa5+ {[%emt 0:01:34]} 39. Kb8 {[%emt 0:02:03]} Qb6+ {[%emt 0:00:41]} 40. Ka8 {[%emt 0:00:00]} Qc6+ {[%emt 0:00:00]} 41. Ka7 {[%emt 0:02:54]} h6 {[%emt 0:01:11]} 42. g5 {[%emt 0:04:19]} Rf5 {[%emt 0:04:34]} 43. Rd8+ {[%emt 0:10:18]} Kh7 {[%emt 0:00:14]} 44. gxh6 {[%emt 0:00:59]} Qxh6 {[%emt 0:02:31]} 45. Qe4 {[%emt 0:01:03]} Qg6 {[%emt 0:00:15]} 46. Ka8 {[%emt 0:01:29]} a5 {[%emt 0:03:54]} 47. h5 {[%emt 0:01:51]} Qf6 {[%emt 0:04:29]} 48. Rd5 {[%emt 0:00:34]} Qc6+ {[%emt 0:00:04]} 0-1

[Event "EYCC Open-U12 2019"]
[Site "Bratislava"]
[Date "2019.08.08"]
[Round "7.35"]
[White "Gudmundsson, Gunnar Erik"]
[Black "Kvaloy, Aksel Bu"]
[Result "0-1"]
[ECO "A42"]
[WhiteElo "1746"]
[BlackElo "2205"]
[Annotator "NA"]
[PlyCount "62"]
[EventDate "2019.08.02"]
[EventType "swiss"]
[EventCountry "SVK"]
[SourceTitle "playchess.com"]
[Source "ChessBase"]
[SourceQuality "1"]
[TimeControl "40/5400+30:1800+30"]

1. d4 {[%emt 0:00:00]} g6 {[%emt 0:00:00]} 2. c4 {[%emt 0:00:00]} Bg7 {[%emt 0:00:00]} 3. Nc3 {[%emt 0:00:00]} d6 {[%emt 0:00:02]} 4. e4 {[%emt 0:00:20]} Nc6 {[%emt 0:00:18]} 5. Be3 {[%emt 0:03:48]} e5 {[%emt 0:00:24]} 6. d5 {[%emt 0:04:44]} Nd4 {[%emt 0:00:14]} 7. Nge2 {[%emt 0:11:33]} Nxe2 {[%emt 0:00:07]} 8. Bxe2 {[%emt 0:00:06]} f5 {[%emt 0:00:10]} 9. f3 {[%emt 0:05:34]} Nf6 {[%emt 0:00:18]} 10. c5 {[%emt 0:01:36]} O-O {[%emt 0:01:32]} 11. O-O {[%emt 0:03:02]} Nh5 {[%emt 0:02:30]} 12. cxd6 {[%emt 0:04:52]} cxd6 {[%emt 0:00:43]} 13. exf5 {[%emt 0:01:27]} gxf5 {[%emt 0:03:42]} 14. f4 {[%emt 0:01:31]} Nxf4 {[%emt 0:00:43]} 15. Bxf4 {[%emt 0:00:08]} exf4 {[%emt 0:00:06]} 16. Rxf4 {[%emt 0:00:23]} Be5 {[%emt 0:01:36]} 17. Rf2 {[%emt 0:12:33]} Qb6 {[%emt 0:03:28]} 18. Na4 {[%emt 0:01:12]} Bxh2+ {[%emt 0:00:48]} 19. Kf1 {[%emt 0:00:51]} Qe3 {[%emt 0:01:49]} 20. Qc1 {[%emt 0:06:29]} Qe7 {[%emt 0:15:08]} 21. Bc4 {[%emt 0:18:13]} Bg3 {[%emt 0:07:50]} 22. Rc2 {[%emt 0:15:26]} Qh4 {[%emt 0:02:44]} 23. Qe3 {[%emt 0:02:08]} f4 {[%emt 0:01:04]} 24. Qd4 {[%emt 0:00:29]} Bg4 {[%emt 0:00:51]} 25. Be2 {[%emt 0:01:24]} f3 {[%emt 0:00:48]} 26. Bxf3 {[%emt 0:03:36]} Qh1+ {[%emt 0:00:43]} 27. Qg1 {[%emt 0:01:13]} Rxf3+ {[%emt 0:00:12]} 28. gxf3 {[%emt 0:00:20]} Qxf3+ {[%emt 0:00:05]} 29. Rf2 {[%emt 0:00:18]} Bxf2 {[%emt 0:00:08]} 30. Qxf2 {[%emt 0:00:23]} Qh1+ {[%emt 0:00:07]} 31. Qg1 {[%emt 0:00:25]} Rf8+ {[%emt 0:00:04]} 0-1

[Event "EYCC Open-U12 2019"]
[Site "Bratislava"]
[Date "2019.08.08"]
[Round "7.36"]
[White "Rakovsky, Jakub"]
[Black "Mekhane, Adam"]
[Result "1-0"]
[ECO "C55"]
[WhiteElo "1663"]
[BlackElo "2040"]
[Annotator "NA"]
[PlyCount "135"]
[EventDate "2019.08.02"]
[EventType "swiss"]
[EventCountry "SVK"]
[SourceTitle "playchess.com"]
[Source "ChessBase"]
[SourceQuality "1"]
[TimeControl "40/5400+30:1800+30"]

1. e4 {[%emt 0:00:00]} e5 {[%emt 0:00:00]} 2. Bc4 {[%emt 0:00:19]} Nc6 {[%emt 0:00:14]} 3. d3 {[%emt 0:00:14]} Nf6 {[%emt 0:00:21]} 4. Nf3 {[%emt 0:00:17]} h6 {[%emt 0:00:29]} 5. h3 {[%emt 0:00:51]} d6 {[%emt 0:01:26]} 6. c3 {[%emt 0:00:10]} g6 {[%emt 0:00:39]} 7. Bb3 {[%emt 0:01:45]} Bg7 {[%emt 0:00:34]} 8. Bc2 {[%emt 0:00:37]} O-O {[%emt 0:03:07]} 9. O-O {[%emt 0:01:04]} d5 {[%emt 0:07:21]} 10. Nbd2 {[%emt 0:02:26]} Be6 {[%emt 0:02:29]} 11. Re1 {[%emt 0:02:08]} Nh5 {[%emt 0:06:40]} 12. Nb3 {[%emt 0:06:55]} d4 {[%emt 0:19:34]} 13. cxd4 {[%emt 0:10:26]} exd4 {[%emt 0:07:35]} 14. e5 {[%emt 0:08:34]} g5 {[%emt 0:19:23]} 15. Nxg5 {[%emt 0:09:46]} hxg5 {[%emt 0:01:53]} 16. Qxh5 {[%emt 0:00:02]} Nxe5 {[%emt 0:01:08]} 17. Bxg5 {[%emt 0:00:39]} Qd5 {[%emt 0:05:36]} 18. Bf4 {[%emt 0:03:04]} Ng6 {[%emt 0:04:55]} 19. Qxd5 {[%emt 0:01:32]} Bxd5 {[%emt 0:00:00]} 20. Bg3 {[%emt 0:01:16]} Rac8 {[%emt 0:03:07]} 21. Nd2 {[%emt 0:08:39]} f5 {[%emt 0:02:54]} 22. f3 {[%emt 0:05:25]} b5 {[%emt 0:02:26]} 23. Bb3 {[%emt 0:02:26]} Bxb3 {[%emt 0:02:42]} 24. Nxb3 {[%emt 0:04:19]} f4 {[%emt 0:00:50]} 25. Bf2 {[%emt 0:00:30]} Rfd8 {[%emt 0:03:03]} 26. Re6 {[%emt 0:03:53]} Ne5 {[%emt 0:02:38]} 27. Nxd4 {[%emt 0:04:24]} c5 {[%emt 0:01:35]} 28. Nxb5 {[%emt 0:07:52]} Nxd3 {[%emt 0:00:37]} 29. Nxa7 {[%emt 0:06:57]} Bxb2 {[%emt 0:00:32]} 30. Nxc8 {[%emt 0:01:35]} Bxa1 {[%emt 0:00:17]} 31. Rd6 {[%emt 0:01:02]} Rxc8 {[%emt 0:00:29]} 32. Rxd3 {[%emt 0:00:01]} c4 {[%emt 0:00:00]} 33. Rd1 {[%emt 0:00:26]} Bb2 {[%emt 0:01:11]} 34. Rd2 {[%emt 0:00:08]} c3 {[%emt 0:00:35]} 35. Rc2 {[%emt 0:00:06]} Ba3 {[%emt 0:00:36]} 36. Bd4 {[%emt 0:02:40]} Rd8 {[%emt 0:00:14]} 37. Be5 {[%emt 0:02:48]} Bc5+ {[%emt 0:00:47]} 38. Kf1 {[%emt 0:00:08]} Be3 {[%emt 0:00:05]} 39. Bxc3 {[%emt 0:03:18]} Kf7 {[%emt 0:00:29]} 40. Ke2 {[%emt 0:00:34]} Ke6 {[%emt 0:00:05]} 41. Bd2 {[%emt 0:00:28]} Ba7 {[%emt 0:00:47]} 42. Bxf4 Kf5 43. Be3 {[%emt 0:01:46]} Bb8 {[%emt 0:00:39]} 44. g4+ {[%emt 0:00:23]} Kg6 45. h4 {[%emt 0:00:28]} Re8 {[%emt 0:00:01]} 46. h5+ {[%emt 0:00:19]} Kh7 {[%emt 0:00:00]} 47. Kf2 {[%emt 0:00:43]} Rf8 {[%emt 0:00:52]} 48. Rb2 {[%emt 0:00:33]} Be5 {[%emt 0:01:09]} 49. Rb7+ Kh8 50. a4 {[%emt 0:01:07]} Bg7 {[%emt 0:00:08]} 51. a5 Ra8 52. Ba7 {[%emt 0:00:53]} Rxa7 {[%emt 0:00:05]} 53. Rxa7 {[%emt 0:00:35]} Bd4+ {[%emt 0:00:01]} 54. Kg3 {[%emt 0:00:19]} Bxa7 {[%emt 0:00:03]} 55. f4 {[%emt 0:00:08]} Kg7 {[%emt 0:00:25]} 56. g5 {[%emt 0:00:05]} Kf7 {[%emt 0:00:11]} 57. Kg4 {[%emt 0:00:05]} Kg7 {[%emt 0:00:25]} 58. f5 {[%emt 0:00:04]} Kh7 {[%emt 0:00:12]} 59. a6 {[%emt 0:00:32]} Kg7 {[%emt 0:00:01]} 60. f6+ {[%emt 0:00:24]} Kh7 {[%emt 0:00:40]} 61. Kf5 {[%emt 0:00:14]} Bc5 {[%emt 0:00:48]} 62. Ke6 {[%emt 0:01:27]} Kh8 {[%emt 0:00:20]} 63. g6 {[%emt 0:02:07]} Kg8 {[%emt 0:00:02]} 64. h6 {[%emt 0:01:01]} Kh8 {[%emt 0:00:17]} 65. g7+ Kh7 {[%emt 0:00:49]} 66. f7 {[%emt 0:01:03]} Bf8 {[%emt 0:00:18]} 67. gxf8=Q {[%emt 0:00:47]} Kg6 {[%emt 0:00:07]} 68. Qg7+ {[%emt 0:00:05]} 1-0

[Event "EYCC Open-U12 2019"]
[Site "Bratislava"]
[Date "2019.08.08"]
[Round "7.37"]
[White "Prazak, Daniel"]
[Black "Soderstrom, Adrian"]
[Result "0-1"]
[ECO "A48"]
[WhiteElo "1586"]
[BlackElo "1970"]
[Annotator "NA"]
[PlyCount "76"]
[EventDate "2019.08.02"]
[EventType "swiss"]
[EventCountry "SVK"]
[SourceTitle "playchess.com"]
[Source "ChessBase"]
[SourceQuality "1"]
[TimeControl "40/5400+30:1800+30"]

1. d4 {[%emt 0:00:00]} Nf6 {[%emt 0:00:00]} 2. Nf3 {[%emt 0:00:00]} g6 {[%emt 0:00:04]} 3. Nc3 {[%emt 0:01:01]} d5 {[%emt 0:02:42]} 4. Bf4 {[%emt 0:01:17]} Bg7 {[%emt 0:05:44]} 5. e3 {[%emt 0:03:42]} O-O {[%emt 0:01:10]} 6. Be2 {[%emt 0:03:41]} c5 {[%emt 0:12:26]} 7. Ne5 {[%emt 0:04:12]} Nc6 {[%emt 0:05:19]} 8. O-O {[%emt 0:03:52]} cxd4 {[%emt 0:06:58]} 9. exd4 {[%emt 0:00:59]} Qb6 {[%emt 0:01:58]} 10. Nxc6 {[%emt 0:14:08]} bxc6 {[%emt 0:11:18]} 11. Na4 {[%emt 0:03:47]} Qd8 {[%emt 0:04:38]} 12. Nc5 {[%emt 0:02:52]} Nd7 {[%emt 0:01:46]} 13. Nxd7 {[%emt 0:04:14]} Bxd7 {[%emt 0:02:56]} 14. c3 {[%emt 0:05:03]} f6 {[%emt 0:05:19]} 15. Qd2 {[%emt 0:05:54]} e5 {[%emt 0:05:08]} 16. Be3 {[%emt 0:01:55]} Be6 {[%emt 0:04:08]} 17. Rfe1 {[%emt 0:06:06]} Rf7 {[%emt 0:02:06]} 18. dxe5 {[%emt 0:07:45]} fxe5 {[%emt 0:00:09]} 19. f4 {[%emt 0:01:03]} d4 {[%emt 0:08:29]} 20. cxd4 {[%emt 0:01:44]} exd4 {[%emt 0:00:05]} 21. Bf2 {[%emt 0:01:57]} Qd6 {[%emt 0:01:23]} 22. Bg3 {[%emt 0:02:51]} Qd7 {[%emt 0:00:57]} 23. Bf3 {[%emt 0:01:43]} Bd5 {[%emt 0:01:00]} 24. Bxd5 {[%emt 0:02:22]} Qxd5 {[%emt 0:00:08]} 25. Bf2 {[%emt 0:01:48]} Raf8 {[%emt 0:00:38]} 26. g3 {[%emt 0:00:43]} g5 {[%emt 0:01:18]} 27. Rad1 {[%emt 0:02:47]} c5 {[%emt 0:01:06]} 28. b4 {[%emt 0:03:35]} gxf4 {[%emt 0:01:35]} 29. bxc5 {[%emt 0:00:44]} fxg3 {[%emt 0:00:39]} 30. Bxg3 {[%emt 0:00:09]} d3 {[%emt 0:00:57]} 31. Qxd3 {[%emt 0:00:42]} Qxc5+ {[%emt 0:01:58]} 32. Qe3 {[%emt 0:01:58]} Qc4 {[%emt 0:00:48]} 33. Rd2 {[%emt 0:04:18]} Rf1+ {[%emt 0:04:44]} 34. Kg2 {[%emt 0:00:15]} Rxe1 {[%emt 0:00:24]} 35. Qxe1 {[%emt 0:00:27]} Bc3 {[%emt 0:00:33]} 36. Qc1 {[%emt 0:01:12]} Qe4+ {[%emt 0:00:21]} 37. Kh3 {[%emt 0:01:54]} Qf5+ {[%emt 0:00:20]} 38. Kg2 {[%emt 0:00:53]} Bxd2 {[%emt 0:00:14]} 0-1

[Event "EYCC Open-U12 2019"]
[Site "Bratislava"]
[Date "2019.08.08"]
[Round "7.38"]
[White "Stevik, Patrik"]
[Black "Cherneyko, Ivan"]
[Result "0-1"]
[ECO "A05"]
[WhiteElo "1941"]
[BlackElo "1743"]
[Annotator "NA"]
[PlyCount "66"]
[EventDate "2019.08.02"]
[EventType "swiss"]
[EventCountry "SVK"]
[SourceTitle "playchess.com"]
[Source "ChessBase"]
[SourceQuality "1"]
[TimeControl "40/5400+30:1800+30"]

1. Nf3 {[%emt 0:00:00]} Nf6 {[%emt 0:00:00]} 2. c4 {[%emt 0:00:00]} c6 {[%emt 0:00:52]} 3. g3 {[%emt 0:02:08]} d5 {[%emt 0:01:11]} 4. cxd5 {[%emt 0:00:22]} cxd5 {[%emt 0:00:10]} 5. d4 {[%emt 0:00:15]} Nc6 {[%emt 0:05:47]} 6. Nc3 {[%emt 0:00:34]} a6 {[%emt 0:10:07]} 7. Bg2 {[%emt 0:01:57]} Bf5 {[%emt 0:05:24]} 8. O-O {[%emt 0:05:03]} e6 {[%emt 0:05:13]} 9. Nh4 {[%emt 0:01:04]} Bg4 {[%emt 0:00:20]} 10. h3 {[%emt 0:02:10]} Bh5 {[%emt 0:00:05]} 11. Nf3 {[%emt 0:03:49]} Bd6 {[%emt 0:05:10]} 12. a3 {[%emt 0:01:12]} Rc8 {[%emt 0:01:11]} 13. Re1 {[%emt 0:06:17]} O-O {[%emt 0:08:03]} 14. Qa4 {[%emt 0:07:43]} b5 {[%emt 0:08:17]} 15. Qxa6 {[%emt 0:14:40]} Bxf3 {[%emt 0:03:52]} 16. exf3 {[%emt 0:00:10]} Nxd4 {[%emt 0:03:52]} 17. Rd1 {[%emt 0:01:47]} Ra8 {[%emt 0:05:40]} 18. Qb7 {[%emt 0:02:05]} Rb8 {[%emt 0:01:23]} 19. Qa7 {[%emt 0:00:51]} Nb3 {[%emt 0:06:28]} 20. Rb1 {[%emt 0:00:10]} Bc5 {[%emt 0:00:07]} 21. Qa6 {[%emt 0:02:00]} Rb6 {[%emt 0:00:09]} 22. Qa7 {[%emt 0:00:13]} Qc8 {[%emt 0:00:23]} 23. a4 {[%emt 0:07:43]} Rb8 {[%emt 0:02:16]} 24. Qxb8 {[%emt 0:04:28]} Qxb8 {[%emt 0:00:04]} 25. Nxb5 {[%emt 0:00:10]} Qb6 {[%emt 0:00:14]} 26. Rf1 {[%emt 0:01:39]} Nh5 {[%emt 0:01:00]} 27. Kh2 {[%emt 0:01:09]} Bxf2 {[%emt 0:00:20]} 28. Rd1 {[%emt 0:02:16]} Bxg3+ {[%emt 0:00:18]} 29. Kh1 {[%emt 0:00:08]} Nxc1 {[%emt 0:01:38]} 30. Rbxc1 {[%emt 0:01:47]} Bf4 {[%emt 0:00:05]} 31. Rc2 {[%emt 0:00:38]} Ng3+ {[%emt 0:00:20]} 32. Kh2 {[%emt 0:00:09]} Nf1+ {[%emt 0:00:21]} 33. Kh1 {[%emt 0:00:07]} Ne3 {[%emt 0:00:08]} 0-1

[Event "EYCC Open-U12 2019"]
[Site "Bratislava"]
[Date "2019.08.08"]
[Round "7.39"]
[White "Herwy, Jakub"]
[Black "Uritsky, Yonathan"]
[Result "0-1"]
[ECO "B24"]
[WhiteElo "1685"]
[BlackElo "2040"]
[Annotator "NA"]
[PlyCount "122"]
[EventDate "2019.08.02"]
[EventType "swiss"]
[EventCountry "SVK"]
[SourceTitle "playchess.com"]
[Source "ChessBase"]
[SourceQuality "1"]
[TimeControl "40/5400+30:1800+30"]

1. e4 {[%emt 0:00:00]} c5 {[%emt 0:00:00]} 2. Nc3 {[%emt 0:00:00]} Nc6 {[%emt 0:00:15]} 3. g3 {[%emt 0:00:11]} g6 {[%emt 0:00:15]} 4. Bg2 {[%emt 0:00:18]} Bg7 {[%emt 0:00:17]} 5. d3 {[%emt 0:00:08]} Rb8 {[%emt 0:00:21]} 6. f4 {[%emt 0:01:28]} b5 {[%emt 0:00:27]} 7. Nf3 {[%emt 0:03:01]} b4 {[%emt 0:00:47]} 8. Ne2 {[%emt 0:00:32]} d6 {[%emt 0:01:22]} 9. O-O {[%emt 0:01:53]} e6 {[%emt 0:01:32]} 10. a3 {[%emt 0:16:09]} a5 {[%emt 0:02:05]} 11. axb4 {[%emt 0:00:30]} axb4 {[%emt 0:00:17]} 12. d4 {[%emt 0:03:19]} cxd4 {[%emt 0:04:37]} 13. Nexd4 {[%emt 0:01:30]} Nge7 {[%emt 0:01:16]} 14. Be3 {[%emt 0:01:18]} O-O {[%emt 0:00:40]} 15. Nxc6 {[%emt 0:01:44]} Nxc6 {[%emt 0:00:07]} 16. Nd4 {[%emt 0:00:31]} Ne7 {[%emt 0:04:53]} 17. Kh1 {[%emt 0:06:16]} Bb7 {[%emt 0:00:58]} 18. Qd2 {[%emt 0:03:29]} d5 {[%emt 0:01:58]} 19. e5 {[%emt 0:00:22]} Qd7 {[%emt 0:06:27]} 20. Rfc1 {[%emt 0:05:09]} Ba8 {[%emt 0:06:33]} 21. Bf2 {[%emt 0:05:52]} Rfc8 {[%emt 0:02:15]} 22. Nb3 {[%emt 0:01:14]} Nc6 {[%emt 0:03:56]} 23. Bc5 {[%emt 0:14:09]} Bf8 {[%emt 0:04:23]} 24. Bxf8 {[%emt 0:01:21]} Kxf8 {[%emt 0:01:39]} 25. Rf1 {[%emt 0:07:52]} Ne7 {[%emt 0:06:48]} 26. Nd4 {[%emt 0:03:53]} Kg8 {[%emt 0:01:51]} 27. g4 {[%emt 0:01:28]} Kh8 {[%emt 0:04:21]} 28. Rf3 {[%emt 0:02:16]} Rf8 {[%emt 0:10:18]} 29. f5 {[%emt 0:05:03]} exf5 {[%emt 0:07:07]} 30. gxf5 {[%emt 0:00:11]} Nxf5 {[%emt 0:00:06]} 31. Nxf5 {[%emt 0:00:19]} gxf5 {[%emt 0:00:05]} 32. Qd4 {[%emt 0:04:37]} Qe6 {[%emt 0:00:31]} 33. Bh3 {[%emt 0:01:52]} Qb6 {[%emt 0:01:40]} 34. Qxb6 {[%emt 0:00:38]} Rxb6 {[%emt 0:00:02]} 35. Rxf5 {[%emt 0:00:21]} b3 {[%emt 0:00:31]} 36. Rf2 {[%emt 0:05:14]} Rfb8 {[%emt 0:03:50]} 37. Bg2 {[%emt 0:00:50]} Kg7 {[%emt 0:02:03]} 38. c3 {[%emt 0:01:13]} Re6 {[%emt 0:01:04]} 39. Re2 {[%emt 0:01:24]} Rbe8 {[%emt 0:00:26]} 40. Rg1 {[%emt 0:00:00]} Kh8 {[%emt 0:00:00]} 41. Ra1 {[%emt 0:04:03]} Bc6 {[%emt 0:02:39]} 42. Rf2 {[%emt 0:05:34]} Rxe5 {[%emt 0:03:12]} 43. Rxf7 {[%emt 0:00:43]} Re1+ {[%emt 0:01:06]} 44. Rf1 {[%emt 0:00:15]} Rxf1+ {[%emt 0:04:50]} 45. Rxf1 {[%emt 0:04:02]} Re2 {[%emt 0:00:56]} 46. Rb1 {[%emt 0:00:36]} Rd2 {[%emt 0:00:27]} 47. c4 {[%emt 0:01:26]} Kg7 {[%emt 0:02:25]} 48. h3 {[%emt 0:09:06]} Kf6 {[%emt 0:00:41]} 49. Ra1 {[%emt 0:01:24]} Ke5 {[%emt 0:00:55]} 50. cxd5 {[%emt 0:00:49]} Bxd5 {[%emt 0:00:37]} 51. Bxd5 {[%emt 0:00:55]} Kxd5 {[%emt 0:00:09]} 52. Ra7 {[%emt 0:00:13]} Rxb2 {[%emt 0:00:15]} 53. Rxh7 {[%emt 0:00:06]} Kd4 {[%emt 0:00:40]} 54. h4 {[%emt 0:00:42]} Rc2 {[%emt 0:00:40]} 55. Rd7+ {[%emt 0:00:17]} Kc3 {[%emt 0:00:36]} 56. Rc7+ {[%emt 0:02:39]} Kd2 {[%emt 0:00:17]} 57. Rb7 {[%emt 0:00:07]} b2 {[%emt 0:00:14]} 58. h5 {[%emt 0:00:13]} Kc1 {[%emt 0:00:40]} 59. h6 {[%emt 0:00:46]} b1=Q {[%emt 0:00:31]} 60. Rxb1+ {[%emt 0:00:57]} Kxb1 {[%emt 0:00:04]} 61. h7 {[%emt 0:00:05]} Rc8 0-1

[Event "EYCC Open-U12 2019"]
[Site "Bratislava"]
[Date "2019.08.08"]
[Round "7.40"]
[White "Culum, Sanjin"]
[Black "Ivanov, Svetlen"]
[Result "0-1"]
[ECO "B40"]
[WhiteElo "1912"]
[BlackElo "1717"]
[Annotator "NA"]
[PlyCount "116"]
[EventDate "2019.08.02"]
[EventType "swiss"]
[EventCountry "SVK"]
[SourceTitle "playchess.com"]
[Source "ChessBase"]
[SourceQuality "1"]
[TimeControl "40/5400+30:1800+30"]

1. e4 {[%emt 0:00:00]} c5 {[%emt 0:00:00]} 2. Nf3 {[%emt 0:00:00]} e6 {[%emt 0:00:00]} 3. d4 {[%emt 0:00:05]} cxd4 {[%emt 0:00:02]} 4. Nxd4 {[%emt 0:00:07]} Nf6 {[%emt 0:00:05]} 5. Nc3 {[%emt 0:00:07]} Nc6 {[%emt 0:00:05]} 6. Be2 {[%emt 0:01:04]} Bb4 {[%emt 0:03:02]} 7. Nxc6 {[%emt 0:04:53]} bxc6 {[%emt 0:03:35]} 8. O-O {[%emt 0:00:31]} d5 {[%emt 0:01:52]} 9. exd5 {[%emt 0:01:59]} cxd5 {[%emt 0:00:38]} 10. a3 {[%emt 0:02:25]} Bd6 {[%emt 0:01:18]} 11. Bf3 {[%emt 0:02:23]} Ba6 {[%emt 0:03:17]} 12. Re1 {[%emt 0:00:16]} O-O {[%emt 0:00:08]} 13. Be3 {[%emt 0:03:36]} Qc7 {[%emt 0:01:55]} 14. h3 {[%emt 0:00:42]} Rab8 {[%emt 0:00:21]} 15. Qd2 {[%emt 0:19:52]} Rxb2 {[%emt 0:13:30]} 16. Bd4 {[%emt 0:00:40]} Bf4 {[%emt 0:01:22]} 17. Qd1 {[%emt 0:00:54]} Rbb8 {[%emt 0:00:26]} 18. g3 {[%emt 0:05:02]} Bd6 {[%emt 0:01:23]} 19. Be2 {[%emt 0:07:34]} Bc4 {[%emt 0:10:12]} 20. Bxc4 {[%emt 0:02:30]} Qxc4 {[%emt 0:00:39]} 21. Qd2 {[%emt 0:00:24]} Rbc8 {[%emt 0:02:17]} 22. Qd3 {[%emt 0:06:24]} Rfd8 {[%emt 0:13:01]} 23. Nb5 {[%emt 0:04:58]} a6 {[%emt 0:05:22]} 24. Nxd6 {[%emt 0:02:15]} Rxd6 {[%emt 0:00:08]} 25. Qxc4 {[%emt 0:00:16]} Rxc4 {[%emt 0:00:07]} 26. c3 {[%emt 0:00:11]} Ne4 {[%emt 0:00:42]} 27. Rec1 {[%emt 0:00:47]} Rdc6 {[%emt 0:00:58]} 28. Rab1 {[%emt 0:00:13]} h5 {[%emt 0:01:51]} 29. Rb4 {[%emt 0:01:37]} Nd2 {[%emt 0:02:01]} 30. Rb8+ {[%emt 0:02:13]} Kh7 {[%emt 0:00:12]} 31. Rd1 {[%emt 0:01:09]} Ne4 {[%emt 0:00:36]} 32. Rf8 {[%emt 0:02:11]} f6 {[%emt 0:02:57]} 33. Rb1 {[%emt 0:00:52]} Nxc3 {[%emt 0:01:58]} 34. Bxc3 {[%emt 0:00:05]} Rxc3 {[%emt 0:00:04]} 35. Rf7 {[%emt 0:00:45]} Rc1+ {[%emt 0:00:27]} 36. Rxc1 {[%emt 0:00:05]} Rxc1+ {[%emt 0:00:03]} 37. Kg2 {[%emt 0:00:07]} Ra1 {[%emt 0:00:14]} 38. Re7 {[%emt 0:00:06]} e5 {[%emt 0:00:04]} 39. Rd7 {[%emt 0:00:29]} d4 {[%emt 0:00:05]} 40. Rd5 {[%emt 0:00:00]} Rxa3 {[%emt 0:00:00]} 41. f4 {[%emt 0:00:22]} Re3 {[%emt 0:02:26]} 42. fxe5 {[%emt 0:00:13]} fxe5 {[%emt 0:00:00]} 43. Ra5 {[%emt 0:00:22]} Kg6 {[%emt 0:00:12]} 44. Rxa6+ {[%emt 0:00:11]} Kf5 {[%emt 0:00:05]} 45. Kf2 {[%emt 0:00:32]} h4 {[%emt 0:00:55]} 46. gxh4 {[%emt 0:01:10]} Rxh3 {[%emt 0:00:16]} 47. Ra7 {[%emt 0:00:12]} g6 {[%emt 0:00:34]} 48. Rf7+ {[%emt 0:00:14]} Ke4 {[%emt 0:00:16]} 49. Rf6 {[%emt 0:00:45]} Rxh4 {[%emt 0:00:05]} 50. Rxg6 {[%emt 0:00:03]} Rh2+ {[%emt 0:00:14]} 51. Ke1 {[%emt 0:00:58]} Kf4 {[%emt 0:00:18]} 52. Rg1 {[%emt 0:02:14]} Ra2 {[%emt 0:00:22]} 53. Rg6 {[%emt 0:00:19]} e4 {[%emt 0:00:29]} 54. Kd1 {[%emt 0:01:15]} Kf3 {[%emt 0:00:50]} 55. Re6 d3 {[%emt 0:00:16]} 56. Rh6 {[%emt 0:00:51]} e3 {[%emt 0:00:34]} 57. Rh3+ {[%emt 0:00:22]} Kf4 {[%emt 0:00:08]} 58. Rh4+ {[%emt 0:00:21]} Kg3 {[%emt 0:00:14]} 0-1